bitfinex-derivatives/quotes_BTCF0:USTF0_20250422
["timestamp","ask_amount","ask_price","bid_price","bid_amount"]
[1745330485354,8e-05,90601.0,90588.0,0.3342206]
[1745330485558,8e-05,90601.0,90589.0,0.1835]
[1745330486149,8e-05,90601.0,90590.0,0.1987]
[1745330486347,0.3608,90602.0,90590.0,0.18485766]
[1745330486542,8e-05,90601.0,90590.0,0.18485766]
[1745330486948,8e-05,90601.0,90591.0,0.1903]
[1745330487251,8e-05,90601.0,90591.0,0.35209986]
[1745330487458,8e-05,90601.0,90591.0,0.192]
[1745330487655,0.3608,90599.0,90591.0,0.192]
[1745330488152,0.3926,90598.0,90591.0,0.192]
[1745330488347,0.3926,90598.0,90591.0,0.188]
[1745330488549,0.45436469,90598.0,90591.0,0.188]
[1745330488850,0.3608,90597.0,90591.0,0.188]
[1745330489158,0.3608,90597.0,90591.0,0.003]
[1745330489450,0.3802,90596.0,90565.0,0.34938425]
[1745330489651,0.3608,90584.0,90566.0,0.1863]
[1745330489856,0.3608,90575.0,90566.0,0.07718382]
[1745330490247,0.1966,90583.0,90570.0,0.00125444]
[1745330490443,0.00835283,90583.0,90570.0,0.00125444]
[1745330490644,0.3608,90586.0,90571.0,0.17110844]
[1745330490948,0.3608,90586.0,90571.0,0.13234055]
[1745330491157,0.3802,90585.0,90578.0,0.00125444]
[1745330491758,0.1966,90585.0,90578.0,0.00125444]
[1745330492056,0.19668,90585.0,90578.0,0.00125444]
[1745330492256,0.19668,90585.0,90581.0,0.00125444]
[1745330492660,0.20518481,90585.0,90581.0,0.00125444]
[1745330492848,0.2669495,90585.0,90581.0,0.00125444]
[1745330493052,0.1984,90584.0,90581.0,0.00125444]
[1745330493348,0.1984,90584.0,90581.0,0.1666695]
[1745330493661,0.1958,90583.0,90581.0,0.1666695]
[1745330493851,0.00850481,90585.0,90581.0,0.1666695]
[1745330494055,0.7216,90586.0,90582.0,0.3693]
[1745330494257,8e-05,90583.0,90582.0,0.3693]
[1745330495153,8e-05,90583.0,90582.0,0.5613]
[1745330495351,8e-05,90583.0,90582.0,0.50592114]
[1745330495747,8e-05,90583.0,90582.0,0.46604602]
[1745330495955,8e-05,90583.0,90582.0,0.185]
[1745330496351,8e-05,90583.0,90582.0,0.187]
[1745330496553,8e-05,90583.0,90582.0,0.17315401]
[1745330496958,8e-05,90583.0,90582.0,0.14546238]
[1745330497458,0.06184469,90583.0,90565.0,0.31261537]
[1745330497660,0.3608,90577.0,90566.0,0.1827]
[1745330497858,0.1828,90576.0,90566.0,0.1827]
[1745330498051,0.1828,90576.0,90566.0,0.3747]
[1745330498251,0.3608,90577.0,90567.0,0.110412]
[1745330498451,0.3608,90577.0,90566.0,0.485112]
[1745330498656,0.36088,90577.0,90566.0,0.485112]
[1745330498859,0.36088,90577.0,90567.0,0.02142515]
[1745330499055,0.1964,90576.0,90567.0,0.02142515]
[1745330499461,0.19447479,90576.0,90567.0,0.13183715]
[1745330499849,0.00192529,90575.0,90567.0,0.13183715]
[1745330500050,0.00192529,90575.0,90567.0,0.32383715]
[1745330500250,0.00192529,90575.0,90568.0,0.110412]
[1745330500657,0.00019684,90606.0,90574.0,0.3608]
[1745330500858,0.3608,90607.0,90590.0,0.3608]
[1745330501163,8e-05,90598.0,90591.0,0.3835]
[1745330501357,0.01312263,90599.0,90591.0,0.3835]
[1745330501560,8e-05,90598.0,90591.0,0.3835]
[1745330501861,0.01312263,90599.0,90592.0,0.11037999]
[1745330502161,0.01312263,90599.0,90592.0,0.50017999]
[1745330502465,0.01312263,90599.0,90593.0,0.11037999]
[1745330502661,8e-05,90598.0,90593.0,0.11037999]
[1745330502959,8e-05,90598.0,90594.0,0.11037999]
[1745330503160,8e-05,90598.0,90594.0,0.192]
[1745330503360,0.3608,90607.0,90594.0,0.192]
[1745330503361,0.00192493,90615.0,90596.0,0.3608]
[1745330503561,0.1903,90625.0,90614.0,0.7216]
[1745330503762,0.00860152,90618.0,90615.0,0.1908]
[1745330503958,0.00845571,90618.0,90615.0,0.1908]
[1745330504262,0.1849,90617.0,90615.0,0.34402466]
[1745330504562,0.3777,90617.0,90615.0,0.09789454]
[1745330504770,0.3777,90617.0,90615.0,0.05804145]
[1745330505065,0.3777,90617.0,90616.0,0.1924]
[1745330505360,0.1849,90617.0,90616.0,0.16582837]
[1745330505561,0.00835878,90618.0,90616.0,0.16582837]
[1745330505763,0.00835878,90618.0,90617.0,0.110356]
[1745330506157,0.00835878,90618.0,90617.0,0.302356]
[1745330506361,0.00827878,90618.0,90617.0,0.302356]
[1745330506562,8e-05,90618.0,90617.0,0.302356]
[1745330506758,0.18506558,90625.0,90617.0,0.302356]
[1745330506959,0.00016558,90625.0,90624.0,0.3608]
[1745330507163,0.00016558,90625.0,90624.0,0.5528]
[1745330507367,0.005,90629.0,90624.0,0.663144]
[1745330507665,8e-05,90625.0,90624.0,0.51294948]
[1745330507863,0.1743,90632.0,90624.0,0.51294948]
[1745330508553,0.17438,90632.0,90624.0,0.51294948]
[1745330509067,0.17438,90632.0,90625.0,0.1976]
[1745330509259,0.00010801,90645.0,90625.0,0.25259503]
[1745330509454,0.1903,90647.0,90634.0,0.3608]
[1745330509663,8e-05,90645.0,90634.0,0.3608]
[1745330509863,8e-05,90645.0,90628.0,0.3608]
[1745330510258,0.06184469,90645.0,90634.0,0.192]
[1745330510459,0.3608,90641.0,90634.0,0.192]
[1745330510658,0.1833,90640.0,90634.0,0.192]
[1745330511066,0.24506469,90640.0,90634.0,0.192]
[1745330512159,0.24514469,90640.0,90634.0,0.192]
[1745330512362,0.1803,90639.0,90634.0,0.192]
[1745330512561,0.1803,90639.0,90634.0,0.189]
[1745330512766,0.1833,90638.0,90634.0,0.189]
[1745330513264,0.1809,90637.0,90634.0,0.189]
[1745330513469,0.1809,90637.0,90634.0,0.16243291]
[1745330513669,0.1986,90636.0,90634.0,0.1225814]
[1745330513863,0.1986,90636.0,90634.0,0.10320902]
[1745330514060,0.1809,90635.0,90634.0,0.10320902]
[1745330514260,0.1809,90635.0,90634.0,0.06278488]
[1745330514457,0.1809,90635.0,90634.0,0.04894735]
[1745330515266,0.18098,90635.0,90634.0,0.04894735]
[1745330515462,0.54178,90635.0,90634.0,0.01020453]
[1745330515965,0.60354469,90635.0,90627.0,0.00016548]
[1745330516159,0.1986,90634.0,90627.0,0.19216548]
[1745330516569,0.1931,90633.0,90627.0,0.16448994]
[1745330516757,0.1931,90633.0,90620.0,0.02858346]
[1745330516958,0.1896,90632.0,90620.0,0.02858346]
[1745330517167,0.1896,90632.0,90620.0,0.22058346]
[1745330517367,0.1931,90631.0,90624.0,0.3608]
[1745330517568,0.1931,90631.0,90625.0,0.14075376]
[1745330518072,0.1931,90631.0,90625.0,0.192]
[1745330518271,0.1896,90630.0,90625.0,0.192]
[1745330518768,0.1931,90629.0,90625.0,0.192]
[1745330518970,0.1931,90629.0,90624.0,0.33232339]
[1745330518971,0.1931,90629.0,90624.0,0.17250938]
[1745330519171,0.1896,90628.0,90625.0,0.192]
[1745330519872,0.1896,90628.0,90625.0,0.1521526]
[1745330520171,0.00026573,90648.0,90626.0,0.215544]
[1745330520466,0.00026573,90648.0,90644.0,0.3608]
[1745330520668,0.3682,90657.0,90645.0,0.2851]
[1745330520864,0.00010801,90667.0,90653.0,0.3608]
[1745330521173,0.3608,90674.0,90654.0,0.1052]
[1745330521363,8e-05,90667.0,90654.0,0.1052]
[1745330521569,8e-05,90667.0,90654.0,0.03991922]
[1745330521877,0.00836939,90667.0,90654.0,0.03991922]
[1745330522061,0.3682,90666.0,90655.0,0.0619]
[1745330522467,0.3682,90666.0,90655.0,0.04253663]
[1745330522767,0.36828,90666.0,90655.0,0.0148749]
[1745330523168,0.36828,90666.0,90655.0,0.2068749]
[1745330523569,0.36828,90666.0,90663.0,0.3608]
[1745330523769,0.18348,90666.0,90664.0,0.1959]
[1745330523969,0.00016548,90670.0,90664.0,0.25087536]
[1745330524164,8e-05,90666.0,90665.0,0.11029199]
[1745330524364,0.00016548,90670.0,90665.0,0.11029199]
[1745330524571,0.00016548,90670.0,90664.0,0.33257937]
[1745330524572,0.194076,90670.0,90666.0,0.11029199]
[1745330524779,0.18586548,90670.0,90665.0,0.11029199]
[1745330524962,0.1966,90669.0,90665.0,0.11029199]
[1745330525167,0.1966,90669.0,90666.0,0.10329199]
[1745330525381,0.1857,90668.0,90666.0,0.10329199]
[1745330525579,0.1857,90668.0,90667.0,0.11029199]
[1745330525871,0.1857,90668.0,90666.0,0.0704676]
[1745330526076,0.1855,90667.0,90666.0,0.0704676]
[1745330526274,0.1855,90667.0,90663.0,0.3608]
[1745330526475,0.1941,90666.0,90663.0,0.3608]
[1745330526771,0.1941,90666.0,90664.0,0.11029599]
[1745330526975,0.1855,90665.0,90664.0,0.11029599]
[1745330527170,0.1855,90665.0,90664.0,0.192]
[1745330527364,0.1855,90665.0,90664.0,0.30229599]
[1745330527568,0.1855,90665.0,90664.0,0.26357288]
[1745330528073,0.18558,90665.0,90664.0,0.26357288]
[1745330528770,0.1941,90666.0,90664.0,0.26357288]
[1745330528771,0.00824489,90674.0,90664.0,0.68997288]
[1745330528977,0.36090801,90688.0,90673.0,0.3608]
[1745330529170,0.0469364,90685.0,90673.0,0.33314399]
[1745330529563,0.04682839,90684.0,90673.0,0.33314399]
[1745330530072,0.04682839,90683.0,90673.0,0.52514399]
[1745330530471,0.04682839,90682.0,90673.0,0.52514399]
[1745330530970,0.3608,90678.0,90673.0,0.192]
[1745330531172,0.04682839,90681.0,90673.0,0.17263854]
[1745330531376,0.3608,90674.0,90673.0,0.17263854]
[1745330531573,0.04682839,90680.0,90673.0,0.17263854]
[1745330531774,0.3608,90677.0,90673.0,0.13280669]
[1745330532074,0.3853,90676.0,90669.0,0.00016548]
[1745330532371,0.43212839,90676.0,90669.0,0.00016548]
[1745330532572,0.04682839,90675.0,90664.0,0.74581083]
[1745330533071,0.43212839,90674.0,90664.0,0.93081083]
[1745330533570,0.04682839,90673.0,90664.0,0.93081083]
[1745330533775,0.04682839,90673.0,90664.0,0.9169812]
[1745330534072,0.43212839,90672.0,90664.0,0.87825823]
[1745330534374,0.04682839,90665.0,90664.0,0.87825823]
[1745330534579,0.10859308,90665.0,90664.0,0.192]
[1745330534772,0.10859308,90665.0,90660.0,0.00016548]
[1745330535081,0.40762839,90661.0,90633.0,0.3608]
[1745330535267,0.3608,90645.0,90633.0,0.3608]
[1745330535584,0.3893,90644.0,90626.0,0.1955]
[1745330535872,0.43612839,90644.0,90626.0,0.17279708]
[1745330536072,0.43612839,90644.0,90631.0,0.00016548]
[1745330536073,0.3608,90637.0,90631.0,0.00016548]
[1745330536375,0.3893,90636.0,90631.0,0.00016548]
[1745330536579,0.43612839,90636.0,90627.0,0.13642449]
[1745330536767,0.04682839,90635.0,90626.0,0.36479708]
[1745330536966,0.04682839,90635.0,90626.0,0.192]
[1745330537167,0.3608,90633.0,90626.0,0.192]
[1745330537371,0.3893,90632.0,90626.0,0.192]
[1745330537769,0.1971,90632.0,90626.0,0.15215498]
[1745330537970,0.1814,90631.0,90626.0,0.15215498]
[1745330538171,0.22822839,90631.0,90626.0,0.15215498]
[1745330538375,0.23712839,90630.0,90626.0,0.15215498]
[1745330538771,0.22822839,90629.0,90626.0,0.15215498]
[1745330539167,0.22822839,90629.0,90626.0,0.11341336]
[1745330539168,0.04682839,90628.0,90626.0,0.11341336]
[1745330539374,0.2352043,90628.0,90626.0,0.09404255]
[1745330539569,0.2263043,90627.0,90626.0,0.03869718]
[1745330540675,0.2263043,90627.0,90626.0,0.00513124]
[1745330542081,0.2263043,90627.0,90626.0,0.192]
[1745330542378,0.1814,90627.0,90626.0,0.192]
[1745330542579,0.18148,90627.0,90626.0,0.192]
[1745330542883,0.00016548,90650.0,90626.0,0.85780164]
[1745330543086,0.00010801,90645.0,90637.0,0.3608]
[1745330543274,0.00010801,90645.0,90626.0,0.49745764]
[1745330543581,0.3608,90641.0,90626.0,0.49745764]
[1745330543771,0.00010801,90645.0,90639.0,0.3608]
[1745330543971,0.1824,90648.0,90640.0,0.3764]
[1745330544277,8e-05,90645.0,90640.0,0.7564]
[1745330544478,8e-05,90645.0,90640.0,0.74256648]
[1745330544881,0.185,90647.0,90640.0,0.74256648]
[1745330545083,8e-05,90645.0,90640.0,0.74256648]
[1745330545283,8e-05,90645.0,90640.0,0.5707]
[1745330545476,0.0449043,90644.0,90640.0,0.192]
[1745330545683,0.3674,90643.0,90640.0,0.192]
[1745330545880,0.4123043,90643.0,90640.0,0.192]
[1745330546189,0.0449043,90642.0,90640.0,0.192]
[1745330546482,0.0449043,90642.0,90640.0,0.13666293]
[1745330546678,0.3674,90641.0,90640.0,0.13666293]
[1745330547273,0.3674,90641.0,90640.0,0.09792667]
[1745330547486,0.36932375,90641.0,90640.0,0.07855795]
[1745330548485,0.36932375,90641.0,90640.0,0.07155795]
[1745330548689,0.36932375,90641.0,90640.0,0.04499743]
[1745330548986,0.00192375,90641.0,90640.0,0.50855297]
[1745330549182,0.00192375,90641.0,90640.0,0.69845297]
[1745330549384,0.00200375,90641.0,90640.0,0.69845297]
[1745330549585,0.00192375,90641.0,90640.0,0.69845297]
[1745330549784,0.00200375,90641.0,90640.0,0.65861622]
[1745330549979,0.00192375,90641.0,90640.0,0.65861622]
[1745330550282,0.00200375,90641.0,90640.0,0.686424]
[1745330551887,0.00200375,90641.0,90640.0,0.192]
[1745330552285,0.00200375,90641.0,90640.0,0.15326586]
[1745330552286,0.04690805,90641.0,90640.0,0.15326586]
[1745330552484,0.00200375,90641.0,90640.0,0.15326586]
[1745330553090,0.04690805,90641.0,90640.0,0.15326586]
[1745330553688,0.0449843,90641.0,90640.0,0.15326586]
[1745330553984,0.04690811,90641.0,90640.0,0.15326586]
[1745330554186,0.04690811,90641.0,90637.0,0.1947]
[1745330554391,0.3888,90640.0,90637.0,0.1947]
[1745330554577,0.3888,90640.0,90638.0,0.1642]
[1745330554982,0.3888,90640.0,90639.0,0.13936746]
[1745330555188,0.3888,90640.0,90639.0,0.31753394]
[1745330555384,0.3888,90640.0,90639.0,0.28986781]
[1745330555584,0.3888,90640.0,90639.0,0.192]
[1745330555780,0.3888,90640.0,90639.0,0.13279181]
[1745330556285,0.4337043,90640.0,90639.0,0.12579181]
[1745330556788,0.4337043,90640.0,90639.0,0.09922821]
[1745330556994,0.00200381,90641.0,90639.0,0.57035621]
[1745330557183,0.00016548,90650.0,90639.0,0.57035621]
[1745330557184,0.3706,90649.0,90640.0,0.662928]
[1745330557488,0.005,90659.0,90648.0,0.3608]
[1745330557691,0.005,90659.0,90658.0,0.3608]
[1745330558185,0.00508,90659.0,90658.0,0.5528]
[1745330558388,0.005,90659.0,90658.0,0.5528]
[1745330558587,0.00508,90659.0,90658.0,0.5528]
[1745330558984,0.005,90659.0,90658.0,0.5528]
[1745330559184,0.00016548,90668.0,90658.0,0.5528]
[1745330559489,0.0449043,90667.0,90659.0,0.5496]
[1745330559987,0.0449043,90666.0,90659.0,0.5496]
[1745330560181,0.00016548,90668.0,90659.0,0.7416]
[1745330560182,0.0449043,90667.0,90659.0,0.7416]
[1745330560587,0.0449043,90666.0,90659.0,0.7416]
[1745330560790,0.0449043,90667.0,90659.0,0.7416]
[1745330560990,0.0449043,90666.0,90659.0,0.7416]
[1745330561192,0.0449043,90667.0,90659.0,0.7416]
[1745330561585,0.0449043,90666.0,90659.0,0.71394039]
[1745330561781,0.0449043,90667.0,90659.0,0.67411054]
[1745330562287,0.0449043,90666.0,90659.0,0.67411054]
[1745330562490,0.1867,90665.0,90659.0,1.03491054]
[1745330562692,0.3676,90665.0,90659.0,1.03491054]
[1745330563786,0.3676,90665.0,90659.0,1.02791054]
[1745330564192,0.3676,90665.0,90659.0,1.00854902]
[1745330564990,0.0449043,90664.0,90659.0,0.5528]
[1745330565182,0.0449043,90664.0,90659.0,0.3608]
[1745330565388,0.4203043,90663.0,90659.0,0.3608]
[1745330565584,0.3754,90663.0,90659.0,0.34696945]
[1745330565788,0.0449043,90660.0,90659.0,0.32041476]
[1745330565983,0.4057043,90660.0,90649.0,0.00016548]
[1745330566187,0.0449043,90650.0,90649.0,0.00016548]
[1745330566592,0.4057043,90650.0,90649.0,0.00016548]
[1745330566891,0.0449043,90650.0,90649.0,0.07016548]
[1745330567092,0.6557043,90650.0,90637.0,0.00496486]
[1745330567295,0.3608,90640.0,90608.0,0.1809]
[1745330567490,0.03993944,90608.0,90583.0,0.3608]
[1745330567792,0.03993944,90608.0,90583.0,0.32590948]
[1745330567997,0.4134151,90607.0,90584.0,0.1809]
[1745330568293,0.4134151,90607.0,90583.0,0.32590948]
[1745330568294,0.00016548,90605.0,90586.0,0.00016548]
[1745330568597,0.3608,90604.0,90586.0,0.00016548]
[1745330568800,0.03993944,90587.0,90583.0,0.15334976]
[1745330569095,0.1977,90586.0,90577.0,0.00496815]
[1745330569488,0.03993944,90585.0,90577.0,0.00496815]
[1745330569891,0.23763944,90584.0,90577.0,0.00496815]
[1745330570090,0.40073944,90578.0,90547.0,0.36576979]
[1745330570290,0.23763944,90577.0,90547.0,0.36576979]
[1745330570498,0.3608,90568.0,90547.0,0.00496979]
[1745330570691,0.1977,90567.0,90550.0,0.3608]
[1745330570886,0.23763944,90567.0,90551.0,0.1942]
[1745330571086,0.03993944,90566.0,90551.0,0.1942]
[1745330571292,0.03993944,90566.0,90552.0,0.1878]
[1745330571487,0.00024559,90568.0,90552.0,0.1878]
[1745330571488,0.3608,90561.0,90552.0,0.1878]
[1745330571801,0.1987,90560.0,90552.0,0.1878]
[1745330571993,0.23863944,90560.0,90552.0,0.1878]
[1745330572296,0.00024559,90568.0,90552.0,0.3798]
[1745330572497,0.00024559,90568.0,90552.0,0.185]
[1745330572690,0.00024559,90568.0,90552.0,0.16561396]
[1745330572997,0.3608,90576.0,90552.0,0.16561396]
[1745330573192,0.3608,90576.0,90558.0,0.3608]
[1745330573499,0.3608,90576.0,90559.0,0.1861]
[1745330573687,0.3608,90576.0,90559.0,0.11963759]
[1745330573892,0.1987,90575.0,90559.0,0.11963759]
[1745330574195,0.1987,90575.0,90569.0,0.3608]
[1745330574592,0.19878,90575.0,90569.0,0.33310729]
[1745330574792,8e-05,90575.0,90570.0,0.1982]
[1745330575095,0.00016559,90577.0,90570.0,0.30860799]
[1745330575298,0.00010801,90592.0,90571.0,0.11040799]
[1745330575489,0.1806,90596.0,90584.0,0.3608]
[1745330575694,8e-05,90592.0,90585.0,0.1982]
[1745330576097,8e-05,90592.0,90585.0,0.192]
[1745330576288,0.3608,90590.0,90585.0,0.17815763]
[1745330576493,0.1806,90589.0,90585.0,0.17815763]
[1745330577202,0.1789203,90589.0,90580.0,0.51985823]
[1745330577704,0.3608,90581.0,90580.0,0.32545823]
[1745330578100,0.3608,90581.0,90579.0,0.00016559]
[1745330578101,0.1789203,90589.0,90579.0,0.00016559]
[1745330579102,0.00192494,90588.0,90579.0,0.00016559]
[1745330579906,0.3608,90584.0,90578.0,0.335697]
[1745330580106,0.1957,90583.0,90578.0,0.334497]
[1745330580498,0.00192494,90588.0,90578.0,0.334497]
[1745330580698,0.19822494,90588.0,90579.0,0.1962]
[1745330580999,0.19822494,90588.0,90579.0,0.17682058]
[1745330581201,0.19822494,90588.0,90579.0,0.36882058]
[1745330581405,0.19822494,90588.0,90579.0,0.34113548]
[1745330581708,0.19822494,90588.0,90579.0,0.16541996]
[1745330582098,0.3608,90585.0,90561.0,0.3608]
[1745330582307,0.3608,90575.0,90561.0,0.3608]
[1745330582610,0.1963,90574.0,90561.0,0.3608]
[1745330583108,0.19638,90574.0,90561.0,0.3608]
[1745330583407,0.19638,90574.0,90562.0,0.1824]
[1745330584403,0.3608,90570.0,90561.0,0.3608]
[1745330584606,0.1868,90569.0,90561.0,0.3608]
[1745330584799,0.3608,90562.0,90553.0,0.3775]
[1745330584994,0.1868,90561.0,90553.0,0.3775]
[1745330585200,0.1868,90561.0,90543.0,0.32545823]
[1745330585201,0.3608,90560.0,90543.0,0.32545823]
[1745330585396,0.3608,90551.0,90543.0,0.32545823]
[1745330585707,0.3608,90551.0,90513.0,0.32588309]
[1745330585900,0.3608,90539.0,90513.0,0.32588309]
[1745330586207,0.1868,90538.0,90514.0,0.3775]
[1745330586505,0.3608,90530.0,90514.0,0.3775]
[1745330586699,0.3793,90529.0,90514.0,0.3775]
[1745330586901,0.3608,90526.0,90514.0,0.36364768]
[1745330587098,0.3793,90525.0,90514.0,0.36364768]
[1745330587607,0.37737619,90525.0,90503.0,0.3608]
[1745330587806,0.37737619,90525.0,90504.0,0.1877]
[1745330588000,0.3608,90523.0,90504.0,0.1807]
[1745330588201,0.3793,90522.0,90504.0,0.15299554]
[1745330588498,0.38122647,90522.0,90504.0,0.15299554]
[1745330588695,0.3608,90517.0,90504.0,0.15299554]
[1745330588896,0.1872,90516.0,90503.0,0.3608]
[1745330589201,0.1872,90516.0,90501.0,0.30606262]
[1745330589502,0.3608,90505.0,90501.0,0.30606262]
[1745330589802,0.1925,90504.0,90500.0,0.07339636]
[1745330590601,0.5533,90504.0,90476.0,0.3608]
[1745330590808,0.3608,90491.0,90476.0,0.3608]
[1745330591002,0.1925,90490.0,90477.0,0.196]
[1745330591196,0.1925,90490.0,90485.0,0.3608]
[1745330591396,0.00010801,90505.0,90488.0,0.1858]
[1745330591607,0.00010801,90505.0,90496.0,0.3608]
[1745330591804,0.00010801,90505.0,90497.0,0.34189715]
[1745330592400,0.00016568,90512.0,90497.0,0.34189715]
[1745330592600,0.00016568,90512.0,90487.0,0.36577309]
[1745330592797,8e-05,90505.0,90487.0,0.36577309]
[1745330593003,8e-05,90505.0,90488.0,0.1942]
[1745330593199,8e-05,90505.0,90503.0,0.3608]
[1745330593505,0.00016568,90512.0,90503.0,0.3608]
[1745330593705,8e-05,90505.0,90503.0,0.3608]
[1745330594303,0.005,90539.0,90504.0,0.30469199]
[1745330594498,0.005,90539.0,90517.0,0.3608]
[1745330594798,0.00014581,90536.0,90532.0,0.3608]
[1745330595006,0.005,90539.0,90533.0,0.3791]
[1745330595206,8e-05,90536.0,90533.0,0.3791]
[1745330595706,0.00192586,90535.0,90533.0,0.3721]
[1745330596301,0.00016568,90544.0,90534.0,0.110456]
[1745330596508,0.183,90559.0,90543.0,0.3608]
[1745330596805,0.2107075,90559.0,90557.0,0.3608]
[1745330597013,0.2107075,90559.0,90544.0,0.1946]
[1745330597014,0.02963301,90558.0,90547.0,0.3608]
[1745330597206,0.02963301,90558.0,90557.0,0.3608]
[1745330597407,0.00192551,90558.0,90557.0,0.34141456]
[1745330597717,0.00010801,90573.0,90557.0,0.94145388]
[1745330597920,0.183,90593.0,90572.0,0.7216]
[1745330598209,0.1912938,90593.0,90589.0,0.3608]
[1745330598513,0.0277075,90592.0,90589.0,0.3608]
[1745330598908,0.2070075,90591.0,90574.0,0.1798]
[1745330599109,0.1793,90591.0,90574.0,0.1798]
[1745330599407,0.0277075,90590.0,90581.0,0.00016559]
[1745330599605,0.0277075,90589.0,90581.0,0.00016559]
[1745330599801,0.1793,90589.0,90581.0,0.00016559]
[1745330600011,0.0277075,90588.0,90581.0,0.00016559]
[1745330600215,8e-05,90592.0,90583.0,0.3608]
[1745330600514,0.00824725,90593.0,90584.0,0.3636]
[1745330600813,8e-05,90592.0,90584.0,0.3636]
[1745330601107,0.00828964,90598.0,90591.0,0.3608]
[1745330601309,0.3608,90635.0,90591.0,0.3608]
[1745330601310,0.3608,90635.0,90593.0,0.3608]
[1745330601503,0.1872,90627.0,90611.0,0.3608]
[1745330601702,0.1872,90627.0,90612.0,0.3894]
[1745330601901,0.19541483,90627.0,90612.0,0.3894]
[1745330602107,0.22320233,90627.0,90612.0,0.36172871]
[1745330602599,0.22320233,90627.0,90622.0,0.3608]
[1745330602800,0.22320233,90627.0,90623.0,0.1961]
[1745330603004,0.0277075,90626.0,90622.0,0.3608]
[1745330603203,0.0277075,90623.0,90611.0,0.3608]
[1745330603507,0.0277075,90612.0,90610.0,0.00016559]
[1745330603703,0.3608,90620.0,90610.0,0.00016559]
[1745330603704,0.2149075,90611.0,90610.0,0.00011065]
[1745330604104,0.5757075,90611.0,90596.0,0.3608]
[1745330604306,0.3608,90603.0,90586.0,0.5569]
[1745330604614,0.1869,90602.0,90586.0,0.5569]
[1745330604811,0.3608,90591.0,90575.0,0.3608]
[1745330605107,0.1869,90590.0,90578.0,0.185]
[1745330605309,0.2146075,90590.0,90579.0,0.1928]
[1745330605509,0.0277075,90589.0,90575.0,0.36096559]
[1745330605710,0.0277075,90589.0,90576.0,0.15181001]
[1745330605913,0.2146075,90588.0,90576.0,0.15181001]
[1745330606211,0.00016559,90593.0,90576.0,0.15181001]
[1745330606411,0.00016559,90593.0,90583.0,0.3608]
[1745330606916,8e-05,90588.0,90583.0,0.3608]
[1745330607719,8e-05,90588.0,90584.0,0.17355889]
[1745330608309,0.0277075,90587.0,90583.0,0.3608]
[1745330608507,0.3845,90586.0,90583.0,0.3608]
[1745330608709,0.4122075,90586.0,90583.0,0.3608]
[1745330608912,0.0277075,90585.0,90583.0,0.3608]
[1745330609306,0.4122075,90584.0,90576.0,0.1924]
[1745330609508,0.3845,90584.0,90576.0,0.1924]
[1745330609714,0.0277075,90583.0,90576.0,0.1924]
[1745330609912,0.3608,90586.0,90576.0,0.1924]
[1745330610107,8e-05,90587.0,90585.0,0.3608]
[1745330610309,0.00016559,90593.0,90585.0,0.3608]
[1745330610604,0.00016559,90593.0,90592.0,0.3608]
[1745330611120,0.00024559,90593.0,90592.0,0.3538]
[1745330613317,0.00024559,90593.0,90588.0,0.1812]
[1745330613522,0.0277075,90592.0,90578.0,0.3608]
[1745330613820,0.1795,90591.0,90579.0,0.35522491]
[1745330614018,0.4049075,90591.0,90579.0,0.35522491]
[1745330614317,0.1795,90591.0,90586.0,0.3608]
[1745330614518,0.00016559,90593.0,90590.0,0.34142345]
[1745330614716,0.00829483,90627.0,90590.0,0.34142345]
[1745330614717,0.00829483,90627.0,90591.0,0.1968]
[1745330614918,0.1795,90609.0,90598.0,0.3608]
[1745330615110,0.00010801,90601.0,90598.0,0.3608]
[1745330615512,0.3772,90609.0,90598.0,0.3608]
[1745330615715,0.00508,90599.0,90598.0,0.3608]
[1745330616518,0.00508,90599.0,90598.0,0.32094233]
[1745330617019,0.0327875,90599.0,90591.0,0.5576]
[1745330617221,0.3927075,90598.0,90591.0,0.16912082]
[1745330617425,0.3927075,90598.0,90582.0,0.1898]
[1745330617722,0.0277075,90597.0,90582.0,0.1898]
[1745330618113,0.3927075,90596.0,90582.0,0.17595933]
[1745330618318,0.365,90596.0,90582.0,0.17595933]
[1745330618614,0.0277075,90595.0,90582.0,0.17595933]
[1745330618925,0.0277075,90595.0,90582.0,0.16895933]
[1745330619121,0.0277075,90583.0,90569.0,0.49986262]
[1745330619322,0.0277075,90576.0,90560.0,0.3608]
[1745330619515,0.0277075,90561.0,90545.0,0.3608]
[1745330619718,0.192,90575.0,90545.0,0.3608]
[1745330619921,0.3608,90570.0,90545.0,0.3608]
[1745330620120,0.0277075,90548.0,90524.0,0.3608]
[1745330620312,0.3608,90560.0,90524.0,0.3608]
[1745330620313,0.3608,90560.0,90532.0,0.3608]
[1745330620521,0.00016559,90545.0,90533.0,0.1984]
[1745330620914,0.0277075,90544.0,90533.0,0.1984]
[1745330621321,0.0277075,90543.0,90527.0,0.00016559]
[1745330621522,0.0277075,90544.0,90527.0,0.19856559]
[1745330621722,0.0277075,90544.0,90527.0,0.17197483]
[1745330621917,0.0277075,90543.0,90527.0,0.17197483]
[1745330622121,0.00815275,90543.0,90527.0,0.17197483]
[1745330622425,0.0277075,90542.0,90527.0,0.17197483]
[1745330622621,0.0277075,90541.0,90527.0,0.13208899]
[1745330622820,0.0277075,90544.0,90527.0,0.13208899]
[1745330623023,0.03596405,90544.0,90526.0,0.3608]
[1745330623325,0.03596405,90544.0,90519.0,0.28683894]
[1745330623326,0.0277075,90543.0,90519.0,0.28683894]
[1745330623520,0.0277075,90543.0,90519.0,0.25913962]
[1745330623822,0.0277075,90542.0,90519.0,0.25913962]
[1745330624025,0.03621649,90544.0,90519.0,0.25913962]
[1745330624218,0.3608,90542.0,90528.0,0.3608]
[1745330624417,0.0277075,90543.0,90537.0,0.3608]
[1745330624621,0.0277075,90543.0,90529.0,0.1806]
[1745330624819,0.0277075,90542.0,90529.0,0.1806]
[1745330625018,0.0277075,90543.0,90529.0,0.1806]
[1745330625423,0.0277075,90542.0,90529.0,0.1806]
[1745330625823,0.0277075,90541.0,90529.0,0.1806]
[1745330626022,0.0277075,90540.0,90529.0,0.1806]
[1745330626229,0.0277075,90543.0,90529.0,0.1806]
[1745330626531,0.0277075,90542.0,90529.0,0.1806]